fUSD/lending_fUSD_20250523
["ID","MTS","AMOUNT","RATE_DAILY","PERIOD"]
[362099143,1747992657500,-733.58,0.00028351,4]
[362099144,1747992657509,-420.0,0.00028351,4]
[362099145,1747992657517,-1172.92,0.00028351,4]
[362099146,1747992657525,-330.75,0.00028351,4]
[362099147,1747992657533,-212.09,0.00028351,4]
[362099148,1747992657540,-420.0,0.00028351,4]
[362099149,1747992657546,-2198.94,0.00028351,4]
[362099150,1747992657554,-831.54,0.00028351,4]
[362099151,1747992657562,-1664.25,0.00028351,4]
[362099152,1747992657572,-420.0,0.00028352,4]
[362099153,1747992657581,-420.0,0.00028352,4]
[362099154,1747992657590,-420.0,0.00028352,4]
[362099155,1747992657598,-420.0,0.00028352,4]
[362099156,1747992657606,-420.0,0.00028352,4]
[362099157,1747992657613,-420.0,0.00028352,4]
[362099158,1747992657621,-244.84,0.00028352,4]
[362099159,1747992657628,-551.83,0.00028352,4]
[362099160,1747992657635,-150.8,0.00028352,4]
[362099161,1747992657642,-313.05,0.00028352,4]
[362099162,1747992657650,-436.07,0.00028352,4]
[362099163,1747992657658,-332.53,0.00028352,4]
[362099164,1747992657666,-420.0,0.00028352,4]
[362099165,1747992657673,-420.0,0.00028352,4]
[362099166,1747992657681,-420.0,0.00028352,4]
[362099167,1747992657688,-279.7,0.00028352,4]
[362099168,1747992657695,-824.69,0.00028352,2]
[362099169,1747992657702,-398.42,0.00028352,4]
[362099170,1747992657709,-420.0,0.00028352,4]
[362099171,1747992657718,-420.0,0.00028352,4]
[362099172,1747992657727,-420.0,0.00028352,4]
[362099173,1747992657736,-505.65,0.00028352,4]
[362099174,1747992657743,-368.61,0.00028352,4]
[362099175,1747992657750,-420.0,0.00028352,4]
[362099176,1747992657759,-397.04400048,0.00028352,4]
[362099177,1747992657767,-344.94244292,0.00028352,4]
[362099178,1747992657776,-420.0,0.00028352,4]
[362099179,1747992657784,-420.0,0.00028352,4]
[362099180,1747992657792,-420.0,0.00028352,4]
[362099181,1747992657799,-420.0,0.00028352,4]
[362099182,1747992657806,-2996.68,0.00028352,4]
[362099183,1747992657813,-420.0,0.00028352,4]
[362099184,1747992657821,-420.0,0.00028352,4]
[362099185,1747992657829,-420.0,0.00028352,4]
[362099186,1747992657836,-504.57,0.00028352,4]
[362099187,1747992657843,-420.0,0.00028352,4]
[362099188,1747992657850,-420.0,0.00028352,4]
[362099189,1747992657856,-2446.02,0.00028352,4]
[362099190,1747992657865,-344.66,0.00028352,4]
[362099191,1747992657872,-220.34,0.00028352,4]
[362099192,1747992657879,-420.0,0.00028352,4]
[362099193,1747992657886,-420.0,0.00028352,4]
[362099194,1747992657894,-288.97,0.00028352,4]
[362099195,1747992657900,-466.67,0.00028352,4]
[362099196,1747992657908,-461.55,0.00028352,4]
[362099197,1747992657916,-420.0,0.00028352,4]
[362099198,1747992657925,-420.0,0.00028352,4]
[362099199,1747992657932,-328.15,0.00028352,4]
[362099200,1747992657940,-502.93,0.00028352,4]
[362099201,1747992657947,-370.98,0.00028352,4]
[362099202,1747992657954,-188.37,0.00028352,4]
[362099203,1747992657962,-420.0,0.00028352,4]
[362099204,1747992657970,-206.15,0.00028352,4]
[362099205,1747992657977,-420.0,0.00028352,4]
[362099206,1747992657985,-420.0,0.00028353,4]
[362099207,1747992657992,-420.0,0.00028353,4]
[362099208,1747992657998,-407.36,0.00028353,4]
[362099209,1747992658006,-492.96,0.00028353,4]
[362099210,1747992658013,-420.0,0.00028353,4]
[362099211,1747992658021,-420.0,0.00028353,4]
[362099212,1747992658028,-420.0,0.00028353,4]
[362099213,1747992658036,-156.67,0.00028353,4]
[362099214,1747992658043,-439.19,0.00028353,4]
[362099215,1747992658050,-420.0,0.00028353,4]
[362099216,1747992658057,-508.57,0.00028353,4]
[362099217,1747992658065,-389.44,0.00028353,4]
[362099218,1747992658072,-420.0,0.00028353,4]
[362099219,1747992658079,-420.0,0.00028353,4]
[362099220,1747992658088,-188.32296791,0.00028353,4]
[362099221,1747992658095,-420.0,0.00028353,4]
[362099222,1747992658104,-483.87,0.00028353,4]
[362099223,1747992658111,-420.0,0.00028353,4]
[362099224,1747992658163,-420.0,0.00028353,4]
[362099225,1747992658171,-2107.79,0.00028353,4]
[362099226,1747992658179,-420.0,0.00028353,4]
[362099227,1747992658188,-477.94,0.00028353,4]
[362099228,1747992658196,-601.93,0.00028353,4]
[362099229,1747992658203,-799.93,0.00028353,4]
[362099230,1747992658211,-420.0,0.00028353,4]
[362099231,1747992658219,-1476.33,0.00028353,4]
[362099232,1747992658226,-420.0,0.00028353,4]
[362099233,1747992658234,-383.98,0.00028353,4]
[362099234,1747992658241,-420.0,0.00028353,4]
[362099235,1747992658250,-441.85147652,0.00028353,4]
[362099236,1747992658258,-420.58,0.00028353,4]
[362099237,1747992658267,-506.82,0.00028353,4]
[362099238,1747992658275,-420.0,0.00028353,4]
[362099239,1747992658281,-420.0,0.00028353,4]
[362099240,1747992658288,-420.0,0.00028353,4]
[362099241,1747992658295,-420.0,0.00028353,4]
[362099242,1747992658301,-420.0,0.00028353,4]
[362099243,1747992658308,-420.0,0.00028353,4]
[362099244,1747992658315,-580.98,0.00028353,4]
[362099245,1747992658323,-553.32,0.00028353,4]
[362099246,1747992658330,-297.62,0.00028354,4]
[362099247,1747992658336,-426.76,0.00028354,4]
[362099248,1747992658343,-553.44,0.00028354,4]
[362099249,1747992658350,-420.0,0.00028354,4]
[362099250,1747992658357,-420.0,0.00028354,4]
[362099251,1747992658364,-420.0,0.00028354,4]
[362099252,1747992658372,-151.59,0.00028354,4]
[362099253,1747992658378,-335.05,0.00028354,4]
[362099254,1747992658386,-341.25,0.00028354,4]
[362099255,1747992658393,-373.83,0.00028354,4]
[362099256,1747992658400,-667.97,0.00028354,2]
[362099257,1747992658409,-457.98,0.00028354,4]
[362099258,1747992658418,-282.76,0.00028354,4]
[362099259,1747992658426,-567.94,0.00028354,4]
[362099260,1747992658435,-420.0,0.00028354,4]
[362099261,1747992658442,-420.0,0.00028354,4]
[362099262,1747992658450,-420.0,0.00028354,4]
[362099263,1747992658456,-399.57,0.00028354,4]
[362099264,1747992658463,-420.0,0.00028354,4]
[362099265,1747992658470,-224.895043,0.00028355,7]
[362099266,1747992658478,-224.895043,0.00028355,7]
[362099267,1747992658486,-151.0,0.00028355,7]
[362099268,1747992658493,-9260.26710295,0.00028388,3]
[362099269,1747992658500,-1471.77350196,0.0002839,2]
[362099270,1747992658507,-151.93372681,0.00028397,2]
[362099271,1747992658514,-203.0,0.0002842,2]
[362099272,1747992658520,-254.14393726,0.00028427,2]
[362099273,1747992658528,-9260.26710295,0.00028427,3]
[362099274,1747992658536,-7232.88979377,0.00028437,2]
[362099275,1747992658544,-150.0,0.00028447,2]
[362099276,1747992658550,-9260.26710295,0.0002846,3]
[362099277,1747992658557,-8638.01287661,0.0002847,3]
[362099278,1747992658567,-1147.35848162,0.0002847,3]
[362099279,1747992658586,-17995.42995067,0.0002847,3]
[362099280,1747992658593,-500.0,0.00028473,5]
[362099281,1747992658599,-500.0,0.00028473,5]
[362099282,1747992658607,-501.58492468,0.00028473,5]
[362099283,1747992658615,-420.0,0.00028479,4]
[362099284,1747992658623,-523.99,0.00028479,4]
[362099285,1747992658631,-420.0,0.00028479,4]
[362099286,1747992658637,-420.0,0.00028479,2]
[362099287,1747992658646,-452.42,0.00028479,4]
[362099288,1747992658655,-420.0,0.00028479,4]
[362099289,1747992658663,-189.14,0.00028479,4]
[362099290,1747992658670,-484.64,0.00028479,4]
[362099291,1747992658677,-420.0,0.00028479,4]
[362099292,1747992658684,-420.0,0.00028488,4]
[362099293,1747992658691,-420.0,0.00028488,4]
[362099294,1747992658698,-420.0,0.00028488,4]
[362099295,1747992658705,-420.0,0.00028488,4]
[362099296,1747992658712,-489.53,0.00028488,4]
[362099297,1747992658719,-420.0,0.00028488,4]
[362099298,1747992658727,-242.21,0.00028488,4]
[362099299,1747992658735,-5141.23,0.00028488,4]
[362099300,1747992658743,-420.0,0.00028488,4]
[362099301,1747992658751,-420.0,0.00028488,4]
[362099302,1747992658759,-420.0,0.00028488,4]
[362099303,1747992658766,-420.0,0.00028488,4]
[362099304,1747992658774,-495.97,0.00028488,4]
[362099305,1747992658782,-733.58,0.00028488,4]
[362099306,1747992658791,-420.0,0.00028488,4]
[362099307,1747992658798,-1172.92,0.00028488,4]
[362099308,1747992658805,-420.0,0.00028488,4]
[362099309,1747992658813,-2198.94,0.00028488,4]
[362099310,1747992658821,-831.54,0.00028488,4]
[362099311,1747992658831,-1664.25,0.00028488,4]
[362099312,1747992658837,-420.0,0.00028489,4]
[362099313,1747992658845,-516.37,0.00028489,4]
[362099314,1747992658853,-420.0,0.00028489,4]
[362099315,1747992658861,-420.0,0.00028489,4]
[362099316,1747992658868,-169.33,0.00028489,4]
[362099317,1747992658875,-420.0,0.00028489,4]
[362099318,1747992658881,-327.49,0.00028489,4]
[362099319,1747992658888,-420.0,0.00028489,4]
[362099320,1747992658895,-228.75,0.00028489,4]
[362099321,1747992658903,-420.0,0.00028489,4]
[362099322,1747992658910,-561.35,0.00028489,4]
[362099323,1747992658917,-420.0,0.00028489,4]
[362099324,1747992658924,-420.0,0.00028489,4]
[362099325,1747992658935,-420.0,0.00028489,4]
[362099326,1747992658943,-314.4,0.00028489,4]
[362099327,1747992658951,-420.0,0.00028489,4]
[362099328,1747992658959,-2996.68,0.00028489,4]
[362099329,1747992658966,-420.0,0.00028489,4]
[362099330,1747992658976,-420.0,0.00028489,4]
[362099331,1747992658984,-420.0,0.00028489,4]
[362099332,1747992658992,-203.77,0.00028489,4]
[362099333,1747992659000,-542.21,0.00028489,4]
[362099334,1747992659007,-2446.02,0.00028489,4]
[362099335,1747992659015,-355.35,0.00028489,4]
[362099336,1747992659023,-234.91,0.00028489,4]
[362099337,1747992659031,-461.55,0.00028489,4]
[362099338,1747992659040,-420.0,0.00028489,4]
[362099339,1747992659046,-258.45,0.00028489,4]
[362099340,1747992659054,-420.0,0.00028489,4]
[362099341,1747992659063,-420.0,0.00028489,4]
[362099342,1747992659070,-368.52390674,0.0002849,4]
[362099343,1747992659076,-420.0,0.0002849,4]
[362099344,1747992659083,-420.0,0.0002849,4]
[362099345,1747992659089,-420.0,0.0002849,4]
[362099346,1747992659096,-420.0,0.0002849,4]
[362099347,1747992659103,-420.0,0.0002849,4]
[362099348,1747992659111,-420.0,0.0002849,4]
[362099349,1747992659118,-513.07,0.0002849,4]
[362099350,1747992659125,-420.0,0.0002849,4]
[362099351,1747992659132,-420.0,0.0002849,4]
[362099352,1747992659139,-420.0,0.0002849,4]
[362099353,1747992659148,-420.0,0.0002849,4]
[362099354,1747992659155,-427.64428247,0.0002849,4]
[362099355,1747992659164,-420.0,0.0002849,4]
[362099356,1747992659173,-420.0,0.0002849,4]
[362099357,1747992659182,-420.0,0.0002849,4]
[362099358,1747992659190,-560.85788879,0.0002849,4]
[362099359,1747992659196,-420.0,0.0002849,4]
[362099360,1747992659203,-420.0,0.0002849,4]
[362099361,1747992659209,-420.0,0.0002849,4]
[362099362,1747992659216,-420.0,0.0002849,4]
[362099363,1747992659225,-420.0,0.0002849,4]
[362099364,1747992659232,-420.0,0.0002849,4]
[362099365,1747992659238,-420.0,0.0002849,4]
[362099366,1747992659246,-420.0,0.0002849,4]
[362099367,1747992659254,-250.0,0.0002849,4]
[362099368,1747992659260,-420.0,0.0002849,4]
[362099369,1747992659267,-420.0,0.0002849,4]
[362099370,1747992659274,-420.0,0.0002849,4]
[362099371,1747992659281,-420.0,0.0002849,4]
[362099372,1747992659288,-420.0,0.0002849,4]
[362099373,1747992659296,-420.0,0.0002849,4]
[362099374,1747992659302,-420.0,0.0002849,4]
[362099375,1747992659308,-420.0,0.0002849,4]
[362099376,1747992659315,-420.0,0.0002849,4]
[362099377,1747992659321,-420.0,0.0002849,4]
[362099378,1747992659328,-420.0,0.0002849,4]
[362099379,1747992659335,-420.0,0.0002849,4]
[362099380,1747992659343,-564.72244856,0.0002849,4]
[362099381,1747992659350,-420.0,0.0002849,4]
[362099382,1747992659357,-483.86,0.0002849,4]
[362099383,1747992659365,-420.0,0.0002849,4]
[362099384,1747992659374,-420.0,0.0002849,4]
[362099385,1747992659381,-420.0,0.0002849,4]
[362099386,1747992659388,-420.0,0.0002849,4]
[362099387,1747992659395,-420.0,0.0002849,4]
[362099388,1747992659402,-452.36,0.0002849,4]
[362099389,1747992659409,-420.0,0.0002849,4]
[362099390,1747992659416,-420.0,0.0002849,4]
[362099391,1747992659423,-420.0,0.0002849,4]
[362099392,1747992659430,-420.0,0.0002849,4]
[362099393,1747992659437,-420.0,0.0002849,4]
[362099394,1747992659444,-508.46,0.0002849,4]
[362099395,1747992659452,-420.0,0.0002849,4]
[362099396,1747992659458,-420.0,0.0002849,4]
[362099397,1747992659465,-420.0,0.0002849,4]
[362099398,1747992659472,-420.0,0.0002849,4]
[362099399,1747992659479,-420.0,0.0002849,4]
[362099400,1747992659486,-390.51628594,0.0002849,4]
[362099401,1747992659495,-420.0,0.0002849,4]
[362099402,1747992659503,-420.0,0.0002849,4]
[362099403,1747992659511,-420.0,0.0002849,4]
[362099404,1747992659519,-420.0,0.0002849,4]
[362099405,1747992659526,-420.0,0.0002849,4]
[362099406,1747992659534,-422.1279189,0.0002849,4]
[362099407,1747992659540,-420.0,0.0002849,4]
[362099408,1747992659548,-420.0,0.0002849,4]
[362099409,1747992659555,-420.0,0.0002849,4]
[362099410,1747992659562,-420.0,0.0002849,4]
[362099411,1747992659570,-420.0,0.0002849,4]
[362099412,1747992659580,-420.0,0.0002849,4]
[362099413,1747992659588,-290.85792525,0.0002849,4]
[362099414,1747992659595,-420.0,0.0002849,4]
[362099415,1747992659601,-420.0,0.0002849,4]
[362099416,1747992659609,-425.33698016,0.0002849,4]
[362099417,1747992659617,-420.0,0.0002849,4]
[362099418,1747992659624,-420.0,0.0002849,4]
[362099419,1747992659633,-426.72483316,0.0002849,4]
[362099420,1747992659640,-420.0,0.0002849,4]
[362099421,1747992659651,-422.03689881,0.0002849,4]
[362099422,1747992659659,-420.0,0.0002849,4]
[362099423,1747992659666,-420.0,0.0002849,4]
[362099424,1747992659673,-429.79,0.0002849,4]
[362099425,1747992659680,-420.0,0.0002849,4]
[362099426,1747992659687,-420.0,0.0002849,4]
[362099427,1747992659694,-420.0,0.0002849,4]
[362099428,1747992659701,-420.0,0.0002849,4]
[362099429,1747992659708,-420.0,0.0002849,4]
[362099430,1747992659716,-420.0,0.0002849,4]
[362099431,1747992659727,-420.0,0.0002849,4]
[362099432,1747992659735,-420.0,0.0002849,4]
[362099433,1747992659742,-420.0,0.0002849,4]
[362099434,1747992659748,-420.0,0.0002849,4]
[362099435,1747992659756,-420.0,0.0002849,4]
[362099436,1747992659764,-420.0,0.0002849,4]
[362099437,1747992659771,-437.80584445,0.0002849,4]
[362099438,1747992659779,-420.0,0.0002849,4]
[362099439,1747992659787,-437.62524097,0.0002849,4]
[362099440,1747992659793,-420.0,0.0002849,4]
[362099441,1747992659800,-420.0,0.0002849,4]
[362099442,1747992659808,-420.0,0.0002849,4]
[362099443,1747992659815,-420.0,0.0002849,4]
[362099444,1747992659823,-420.0,0.0002849,4]
[362099445,1747992659830,-429.84547717,0.0002849,4]
[362099446,1747992659839,-420.0,0.0002849,4]
[362099447,1747992659847,-420.0,0.0002849,4]
[362099448,1747992659853,-420.0,0.0002849,4]
[362099449,1747992659860,-420.0,0.0002849,4]
[362099450,1747992659869,-420.0,0.0002849,4]
[362099451,1747992659875,-420.0,0.0002849,4]
[362099452,1747992659882,-565.39,0.0002849,4]
[362099453,1747992659890,-420.0,0.0002849,4]
[362099454,1747992659897,-420.0,0.0002849,4]
[362099455,1747992659903,-420.0,0.0002849,4]
[362099456,1747992659911,-420.0,0.0002849,4]
[362099457,1747992659919,-420.0,0.0002849,4]
[362099458,1747992659926,-422.86476711,0.0002849,4]
[362099459,1747992659935,-430.39,0.0002849,4]
[362099460,1747992659941,-420.0,0.0002849,4]
[362099461,1747992659949,-420.0,0.0002849,4]
[362099462,1747992659957,-420.79,0.0002849,4]
[362099463,1747992659965,-423.79354706,0.0002849,4]
[362099464,1747992659977,-420.0,0.0002849,4]
[362099465,1747992659985,-511.96,0.0002849,4]
[362099466,1747992659993,-420.0,0.0002849,4]
[362099467,1747992660001,-420.0,0.0002849,4]
[362099468,1747992660012,-420.0,0.0002849,4]
[362099469,1747992660019,-420.0,0.0002849,4]
[362099470,1747992660027,-420.0,0.0002849,4]
[362099471,1747992660035,-425.72,0.0002849,4]
[362099472,1747992660042,-420.0,0.0002849,4]
[362099473,1747992660049,-420.0,0.0002849,4]
[362099474,1747992660057,-420.0,0.0002849,4]
[362099475,1747992660065,-420.0,0.0002849,4]
[362099476,1747992660074,-420.0,0.0002849,4]
[362099477,1747992660083,-420.0,0.0002849,4]
[362099478,1747992660090,-420.0,0.0002849,4]
[362099479,1747992660098,-420.0,0.0002849,4]
[362099480,1747992660105,-426.06131851,0.0002849,4]
[362099481,1747992660113,-420.0,0.0002849,4]
[362099482,1747992660120,-420.0,0.0002849,4]
[362099483,1747992660128,-420.0,0.0002849,4]
[362099484,1747992660134,-424.1884585,0.0002849,4]
[362099485,1747992660140,-420.0,0.0002849,4]
[362099486,1747992660147,-420.0,0.0002849,4]
[362099487,1747992660154,-420.0,0.0002849,4]
[362099488,1747992660162,-426.0629251,0.0002849,4]
[362099489,1747992660170,-420.0,0.0002849,4]
[362099490,1747992660180,-420.0,0.0002849,4]
[362099491,1747992660188,-420.0,0.0002849,4]
[362099492,1747992660196,-420.0,0.0002849,4]
[362099493,1747992660204,-420.0,0.0002849,4]
[362099494,1747992660211,-420.0,0.0002849,4]
[362099495,1747992660221,-420.0,0.0002849,4]
[362099496,1747992660227,-420.0,0.0002849,4]
[362099497,1747992660235,-429.93139004,0.0002849,4]
[362099498,1747992660242,-420.0,0.0002849,4]
[362099499,1747992660249,-420.0,0.0002849,4]
[362099500,1747992660256,-420.0,0.0002849,4]
[362099501,1747992660263,-144.48150562,0.0002849,4]
[362099502,1747993234416,213.51,0.00013699,2]
[362099504,1747993244781,226.75,0.0002687,120]
[362099505,1747993326926,204.64363387,0.00017101,2]
[362099506,1747993613575,-410.94723155,0.00020187,2]
[362099507,1747993613591,-178.1055369,0.00020187,2]
[362099508,1747993613601,-200.0,0.00020187,2]
[362099509,1747993613611,-210.94723155,0.00020187,2]
[362099510,1747993634806,-2.56276845,0.00020187,2]
[362099511,1747993634842,-250.0,0.00022206,2]
[362099512,1747993634876,-200.0,0.00022206,2]
[362099513,1747993634895,-2.56276845,0.00022557,2]
[362099514,1747993634912,-197.43723155,0.00022557,2]
[362099515,1747993634924,-52.56276845,0.00022969,2]
[362099516,1747993634936,-98.43723155,0.00022969,2]
[362099517,1747993634946,-101.56276845,0.00023259,2]
[362099518,1747993635186,-49.43723155,0.00023259,2]
[362099519,1747993635196,-45.43723155,0.00023576,2]
[362099520,1747993637133,-119.14883718,0.00023576,2]
[362099521,1747993637155,-112.76421103,0.00023676,2]
[362099522,1747993644117,-151.0,0.00022932,2]
[362099523,1747993644138,-38.23578897,0.00023676,2]
[362099524,1747993644159,-873.53,0.00025346,2]
[362099525,1747993644180,-213.51,0.00026676,2]
[362099526,1747993644200,-150.0,0.00026752,7]
[362099527,1747993644221,-186.67,0.00026838,2]
[362099528,1747993644243,-237.20321018,0.0002702,2]
[362099529,1747993669965,-151.0,0.00023584,2]
[362099530,1747993669996,-12.79678982,0.0002702,2]
[362099531,1747993670029,-165.36,0.00027093,2]
[362099532,1747993670066,-1000.0,0.00027144,2]
[362099533,1747993670099,-1200.0,0.00027149,2]
[362099534,1747993670132,-300.0,0.00027149,2]
[362099535,1747993670162,-2341.68642036,0.0002715,2]
[362099536,1747993670175,-151.0,0.0002715,2]
[362099537,1747993670191,-12.79678982,0.0002715,2]
[362099538,1747993670202,-165.36,0.0002715,2]
[362099539,1747993670218,-1000.0,0.0002715,2]
[362099540,1747993670231,-329.15678982,0.0002715,2]
[362099541,1747993670241,-300.0,0.0002733,2]
[362099542,1747993670253,-181.79,0.00027331,2]
[362099543,1747993670264,-150.850086,0.00027397,4]
[362099544,1747993670274,-150.0,0.00027397,2]
[362099545,1747993670283,-88.20312418,0.00027397,2]
[362099546,1747993670299,-300.0,0.00027397,2]
[362099547,1747993670314,-60.82687582,0.00027397,2]
[362099548,1747993670323,-536.0,0.00027401,2]
[362099549,1747993670333,-873.53,0.0002761,2]
[362099550,1747993670342,-611.10787212,0.000279,18]
[362099551,1747993670351,-400.0,0.000279,10]
[362099552,1747993670361,-500.0,0.00027905,7]
[362099553,1747993670371,-300.0,0.00027929,2]
[362099554,1747993670380,-500.0,0.0002793,2]
[362099555,1747993670390,-218.53525206,0.0002793,2]
[362099556,1747993727839,-151.0,0.00024247,2]
[362099557,1747993727872,-151.0,0.00024984,2]
[362099558,1747993728178,-151.0,0.0002574,2]
[362099559,1747993728210,-250.0,0.00026088,2]
[362099560,1747993728242,-250.0,0.00026671,2]
[362099561,1747993728273,-207.0,0.00027108,2]
[362099562,1747993728293,-151.0,0.00027168,2]
[362099563,1747993728311,-151.0,0.00027168,2]
[362099564,1747993728406,-151.0,0.00027168,2]
[362099565,1747993728418,-250.0,0.00027168,2]
[362099566,1747993728430,-250.0,0.00027168,2]
[362099567,1747993728441,-207.0,0.00027168,2]
[362099568,1747993728453,-7680.0,0.00027168,2]
[362099600,1747993832852,-4296.11383705,0.00027068,2]
[362099602,1747993832863,-512.77616295,0.00027068,2]
[362099605,1747993832873,-989.41,0.00027168,2]
[362099608,1747993832882,-300.0,0.0002783,2]
[362099611,1747993832892,-1200.0,0.0002783,2]
[362099613,1747993832901,-1303.82347266,0.00027831,2]
[362099617,1747993832912,-417.74206616,0.00027831,2]
[362099620,1747993832923,-2483.9722526,0.00027831,2]
[362099625,1747993832962,-975.06032707,0.00027831,2]
[362099627,1747993832973,-717.67659241,0.00027831,2]
[362099629,1747993832984,-2072.45298619,0.00027831,2]
[362100028,1747993838349,-2747.65004059,0.00027831,2]
[362100029,1747993838359,-165.09,0.00027855,2]
[362100030,1747993838369,-590.7376096,0.000279,18]
[362100031,1747993838378,-322.0748122,0.00027929,7]
[362100032,1747993838388,-281.46474794,0.0002793,2]
[362100033,1747993838397,-364.30342252,0.0002793,2]
[362100039,1747993840341,-353.19,0.00027089,2]
[362100040,1747993840352,-135.69657748,0.0002793,2]
[362100041,1747993840361,-500.0,0.0002793,2]
[362100042,1747993840371,-500.0,0.0002793,2]
[362100043,1747993840380,-500.0,0.0002793,2]
[362100044,1747993840390,-500.0,0.0002793,2]
[362100045,1747993840399,-500.0,0.0002793,2]
[362100046,1747993840408,-500.0,0.0002793,2]
[362100047,1747993840417,-500.0,0.0002793,2]
[362100048,1747993840427,-500.0,0.0002793,2]
[362100049,1747993840436,-500.0,0.0002793,2]
[362100050,1747993840446,-500.0,0.0002793,2]
[362100051,1747993840456,-500.0,0.0002793,2]
[362100052,1747993840465,-500.0,0.0002793,2]
[362100053,1747993840475,-500.0,0.0002793,2]
[362100054,1747993840484,-500.0,0.0002793,2]
[362100055,1747993840494,-500.0,0.0002793,2]
[362100056,1747993840503,-500.0,0.0002793,2]
[362100057,1747993840512,-500.0,0.0002793,2]
[362100058,1747993840522,-500.0,0.0002793,2]
[362100059,1747993840531,-500.0,0.0002793,2]
[362100060,1747993840540,-500.0,0.0002793,2]
[362100061,1747993840549,-500.0,0.0002793,2]
[362100062,1747993840559,-500.0,0.0002793,2]
[362100063,1747993840568,-500.0,0.0002793,2]
[362100064,1747993840578,-500.0,0.0002793,2]
[362100065,1747993840587,-500.0,0.0002793,2]
[362100066,1747993840597,-500.0,0.0002793,2]
[362100067,1747993840607,-500.0,0.0002793,2]
[362100068,1747993840616,-85.19170049,0.0002793,2]
[362100069,1747993840636,-414.80829951,0.0002793,2]
[362100070,1747993840645,-500.0,0.0002793,2]
[362100071,1747993840655,-500.0,0.0002793,2]
[362100072,1747993840664,-500.0,0.0002793,2]
[362100073,1747993840674,-165.3424096,0.0002793,2]
[362100074,1747993840683,-500.0,0.0002793,2]
[362100075,1747993840692,-500.0,0.0002793,2]
[362100076,1747993840702,-500.0,0.0002793,2]
[362100077,1747993840711,-500.0,0.0002793,2]
[362100078,1747993840720,-500.0,0.0002793,2]
[362100079,1747993840730,-500.0,0.0002793,2]
[362100080,1747993840739,-620.01102555,0.0002793,2]
[362100081,1747993840751,-21.00835771,0.0002793,2]
[362100082,1747993840760,-500.0,0.0002793,2]
[362100083,1747993840770,-500.0,0.0002793,2]
[362100084,1747993840779,-1.13184229,0.0002793,2]
[362100085,1747993840802,-268.395,0.0002793,2]
[362100086,1747993840824,-230.47315771,0.0002793,2]
[362100087,1747993840834,-500.0,0.0002793,2]
[362100088,1747993840844,-383.1691863,0.0002793,2]
[362100089,1747993840853,-420.0,0.00027931,4]
[362100090,1747993840863,-420.0,0.00027931,4]
[362100091,1747993840873,-420.0,0.00027931,4]
[362100092,1747993840882,-420.0,0.00027931,4]
[362100093,1747993840892,-420.0,0.00027931,4]
[362100094,1747993840902,-420.0,0.00027931,4]
[362100095,1747993840911,-420.0,0.00027931,4]
[362100096,1747993840921,-420.0,0.00027931,4]